[Event "*** Titled Tuesday Blitz"]
[Site "Chess.com"]
[Date "2019.06.04"]
[Round "4"]
[White "hellokostya"]
[Black "Muracle"]
[Result "0-1"]
[WhiteElo "2522"]
[BlackElo "2552"]
[TimeControl "180+2"]
[EndTime "13:50:50 PDT"]
[Termination "Muracle won by resignation"]

1. d4 {[%clk 0:03:01.9]} 1... Nf6 {[%clk 0:03:00.2]} 2. c4 {[%clk 0:03:01]} 2...
g6 {[%clk 0:03:01.3]} 3. f3 {[%clk 0:02:52.3]} 3... e6 {[%clk 0:03:00.2]} 4. Nc3
{[%clk 0:02:50.8]} 4... Bg7 {[%clk 0:02:59.4]} 5. e4 {[%clk 0:02:51.4]} 5... d5
{[%clk 0:02:59.2]} 6. cxd5 {[%clk 0:02:39.9]} 6... exd5 {[%clk 0:02:55.8]} 7. e5
{[%clk 0:02:40.9]} 7... Nh5 {[%clk 0:02:56.5]} 8. Be3 {[%clk 0:02:32]} 8... Qh4+
{[%clk 0:02:34.3]} 9. Bf2 {[%clk 0:02:27.2]} 9... Qd8 {[%clk 0:02:33]} 10. Nge2
{[%clk 0:02:19.9]} 10... Bh6 {[%clk 0:02:30.7]} 11. Qb3 {[%clk 0:02:02.9]} 11...
c6 {[%clk 0:02:30.9]} 12. g4 {[%clk 0:01:54.6]} 12... Nf4 {[%clk 0:02:30.9]} 13.
Nxf4 {[%clk 0:01:54.2]} 13... Bxf4 {[%clk 0:02:32.2]} 14. h4 {[%clk 0:01:54]}
14... h5 {[%clk 0:02:29.9]} 15. Ne2 {[%clk 0:01:50]} 15... Bh6 {[%clk
0:02:26.9]} 16. g5 {[%clk 0:01:49.5]} 16... Bf8 {[%clk 0:02:27.7]} 17. O-O-O
{[%clk 0:01:45.4]} 17... b5 {[%clk 0:02:20.4]} 18. Nf4 {[%clk 0:01:39]} 18...
Nd7 {[%clk 0:02:18]} 19. e6 {[%clk 0:01:37.3]} 19... Nb6 {[%clk 0:02:00.4]} 20.
Re1 {[%clk 0:01:35.9]} 20... Bd6 {[%clk 0:01:48.4]} 21. exf7+ {[%clk 0:01:20]}
21... Kxf7 {[%clk 0:01:48.8]} 22. Bg3 {[%clk 0:01:21.3]} 22... Qc7 {[%clk
0:01:41.2]} 23. Qe3 {[%clk 0:00:57.4]} 23... Bf5 {[%clk 0:01:41]} 24. Ne6 {[%clk
0:00:51.7]} 24... Rae8 {[%clk 0:01:20.1]} 25. Nxc7 {[%clk 0:00:50]} 25... Rxe3
{[%clk 0:01:20]} 26. Bxd6 {[%clk 0:00:36.2]} 26... Rxe1+ {[%clk 0:01:16.9]} 27.
Kd2 {[%clk 0:00:37.2]} 27... Rxf1 {[%clk 0:01:15.2]} 28. Rxf1 {[%clk 0:00:32.9]}
28... Nc4+ {[%clk 0:01:16.1]} 29. Kc3 {[%clk 0:00:32.2]} 29... Nxd6 {[%clk
0:01:17.4]} 30. Na6 {[%clk 0:00:31.3]} 30... Re8 {[%clk 0:01:17.8]} 31. b3
{[%clk 0:00:31.7]} 31... Re2 {[%clk 0:01:17.6]} 32. a3 {[%clk 0:00:30.4]} 32...
Nc8 {[%clk 0:01:15.9]} 33. Nc5 {[%clk 0:00:29.8]} 33... a5 {[%clk 0:01:16]} 34.
b4 {[%clk 0:00:29.4]} 34... Rc2+ {[%clk 0:01:15.7]} 35. Kb3 {[%clk 0:00:29]}
35... a4+ {[%clk 0:01:17]} 36. Nxa4 {[%clk 0:00:30.5]} 36... bxa4+ {[%clk
0:01:18.2]} 37. Kxa4 {[%clk 0:00:32.4]} 37... Rc3 {[%clk 0:01:19]} 38. Ra1
{[%clk 0:00:30.1]} 38... Nd6 {[%clk 0:01:19.6]} 39. f4 {[%clk 0:00:30.2]} 39...
Bd3 {[%clk 0:01:20]} 40. f5 {[%clk 0:00:30.3]} 40... gxf5 {[%clk 0:01:18.5]} 41.
g6+ {[%clk 0:00:30.9]} 41... Kxg6 {[%clk 0:01:19.3]} 42. Ka5 {[%clk 0:00:31.3]}
42... Rxa3+ {[%clk 0:01:13.9]} 43. Rxa3 {[%clk 0:00:31.1]} 43... Nc4+ {[%clk
0:01:15.4]} 0-1

[Event "*** Titled Tuesday Blitz"]
[Site "Chess.com"]
[Date "2019.06.04"]
[Round "4"]
[White "SoltaniciR"]
[Black "Swarnapuri"]
[Result "0-1"]
[WhiteElo "2595"]
[BlackElo "2707"]
[TimeControl "180+2"]
[EndTime "13:50:50 PDT"]
[Termination "Swarnapuri won by resignation"]

1. e4 {[%clk 0:03:01.9]} 1... Nc6 {[%clk 0:03:01.9]} 2. Nf3 {[%clk 0:03:00.1]}
2... d6 {[%clk 0:03:03.3]} 3. d4 {[%clk 0:03:00.7]} 3... Nf6 {[%clk 0:03:05.2]}
4. Nc3 {[%clk 0:03:01.3]} 4... Bg4 {[%clk 0:03:06.7]} 5. Bb5 {[%clk 0:02:59.3]}
5... a6 {[%clk 0:03:07.4]} 6. Bxc6+ {[%clk 0:03:00.1]} 6... bxc6 {[%clk
0:03:09.3]} 7. h3 {[%clk 0:03:01.3]} 7... Bh5 {[%clk 0:03:10.2]} 8. g4 {[%clk
0:03:02.1]} 8... Bg6 {[%clk 0:03:11.2]} 9. Qe2 {[%clk 0:03:03.2]} 9... e6 {[%clk
0:03:12]} 10. Bg5 {[%clk 0:02:57.7]} 10... Be7 {[%clk 0:03:12.2]} 11. O-O-O
{[%clk 0:02:54.5]} 11... h6 {[%clk 0:03:10.5]} 12. Bxf6 {[%clk 0:02:50.3]} 12...
Bxf6 {[%clk 0:03:12.4]} 13. h4 {[%clk 0:02:51.8]} 13... Qb8 {[%clk 0:03:03]} 14.
g5 {[%clk 0:02:43.1]} 14... Be7 {[%clk 0:02:57.8]} 15. h5 {[%clk 0:02:21]} 15...
Bh7 {[%clk 0:02:59]} 16. Rhg1 {[%clk 0:02:21.7]} 16... hxg5 {[%clk 0:02:37.5]}
17. Nxg5 {[%clk 0:02:22.4]} 17... Qb4 {[%clk 0:02:39.2]} 18. a3 {[%clk
0:02:18.2]} 18... Qb6 {[%clk 0:02:37.8]} 19. Qc4 {[%clk 0:01:06.2]} 19... Rb8
{[%clk 0:02:24.8]} 20. b3 {[%clk 0:01:07.2]} 20... Bg8 {[%clk 0:02:02.7]} 21.
Qa4 {[%clk 0:00:58.3]} 21... Rxh5 {[%clk 0:01:54.7]} 22. f4 {[%clk 0:00:59.3]}
22... f6 {[%clk 0:01:45.9]} 23. Nf3 {[%clk 0:00:57.7]} 23... Ra5 {[%clk
0:01:44.2]} 24. Qb4 {[%clk 0:00:47.8]} 24... Qxb4 {[%clk 0:01:40.2]} 25. axb4
{[%clk 0:00:48.4]} 25... Ra1+ {[%clk 0:01:40.4]} 26. Kd2 {[%clk 0:00:46.8]}
26... Rxd1+ {[%clk 0:01:42.3]} 27. Nxd1 {[%clk 0:00:42.3]} 27... Rxb4 {[%clk
0:01:42.3]} 28. Rxg7 {[%clk 0:00:42.3]} 28... Bf7 {[%clk 0:01:43.9]} 29. Rh7
{[%clk 0:00:43]} 29... Bg6 {[%clk 0:01:43.2]} 30. Rh8+ {[%clk 0:00:43.7]} 30...
Kd7 {[%clk 0:01:43.9]} 31. Nf2 {[%clk 0:00:40.3]} 31... a5 {[%clk 0:01:33.5]}
32. Ra8 {[%clk 0:00:23.2]} 32... Bh5 {[%clk 0:01:34]} 33. Ke3 {[%clk 0:00:20]}
33... Bxf3 {[%clk 0:01:34.8]} 34. Kxf3 {[%clk 0:00:21.9]} 34... Rxd4 {[%clk
0:01:36.5]} 35. Rxa5 {[%clk 0:00:22.9]} 35... d5 {[%clk 0:01:37.8]} 36. Ke3
{[%clk 0:00:19.4]} 36... Rb4 {[%clk 0:01:37.8]} 37. Ra8 {[%clk 0:00:13.7]} 37...
Bc5+ {[%clk 0:01:35.3]} 38. Kf3 {[%clk 0:00:14.9]} 38... Bxf2 {[%clk 0:01:37.2]}
39. Kxf2 {[%clk 0:00:16.3]} 39... Rxe4 {[%clk 0:01:38.9]} 0-1

[Event "*** Titled Tuesday Blitz"]
[Site "Chess.com"]
[Date "2019.06.04"]
[Round "4"]
[White "RU_B9"]
[Black "europa2012"]
[Result "0-1"]
[WhiteElo "2047"]
[BlackElo "2119"]
[TimeControl "180+2"]
[EndTime "13:50:51 PDT"]
[Termination "europa2012 won by resignation"]

1. c4 {[%clk 0:03:01.9]} 1... e5 {[%clk 0:02:59.4]} 2. Nc3 {[%clk 0:03:03.2]}
2... Nc6 {[%clk 0:03:00.5]} 3. e3 {[%clk 0:03:03.5]} 3... Bc5 {[%clk 0:02:58.6]}
4. Nf3 {[%clk 0:03:03.6]} 4... Nf6 {[%clk 0:02:59.9]} 5. d4 {[%clk 0:03:03.7]}
5... exd4 {[%clk 0:03:00.8]} 6. exd4 {[%clk 0:03:05.6]} 6... Bb4 {[%clk
0:03:01.7]} 7. Be2 {[%clk 0:03:05.5]} 7... O-O {[%clk 0:03:02]} 8. O-O {[%clk
0:03:06.5]} 8... d6 {[%clk 0:03:03.3]} 9. h3 {[%clk 0:03:05.3]} 9... Bxc3 {[%clk
0:03:04.2]} 10. bxc3 {[%clk 0:03:04.9]} 10... h6 {[%clk 0:03:05.7]} 11. Rb1
{[%clk 0:03:02.8]} 11... Rb8 {[%clk 0:03:05.3]} 12. Qc2 {[%clk 0:03:02.3]} 12...
Ne7 {[%clk 0:03:04.9]} 13. Bd3 {[%clk 0:03:02.2]} 13... c6 {[%clk 0:03:02.6]}
14. Bf4 {[%clk 0:02:54]} 14... Ra8 {[%clk 0:02:44.5]} 15. Rfe1 {[%clk
0:02:51.2]} 15... Re8 {[%clk 0:02:42.3]} 16. Qc1 {[%clk 0:02:28]} 16... Bf5
{[%clk 0:02:32.5]} 17. Bxf5 {[%clk 0:02:28.1]} 17... Nxf5 {[%clk 0:02:33.4]} 18.
Rxb7 {[%clk 0:02:28.8]} 18... Qc8 {[%clk 0:02:29.2]} 19. Qb1 {[%clk 0:02:14.5]}
19... Rxe1+ {[%clk 0:02:28.3]} 20. Nxe1 {[%clk 0:02:13.9]} 20... g6 {[%clk
0:02:22.4]} 21. Nf3 {[%clk 0:01:51.7]} 21... Ne4 {[%clk 0:02:18]} 22. Rb3 {[%clk
0:01:46.7]} 22... d5 {[%clk 0:02:14.9]} 23. c5 {[%clk 0:01:41.5]} 23... Qe6
{[%clk 0:02:10]} 24. Qc1 {[%clk 0:01:21.8]} 24... Kh7 {[%clk 0:02:06.9]} 25. Ne5
{[%clk 0:01:09.5]} 25... g5 {[%clk 0:01:41.4]} 26. Be3 {[%clk 0:00:51.9]} 26...
Nxc5 {[%clk 0:01:37.2]} 27. dxc5 {[%clk 0:00:39]} 27... Qxe5 {[%clk 0:01:37.7]}
28. Rb7 {[%clk 0:00:39.8]} 28... Qe6 {[%clk 0:01:31.8]} 29. Qc2 {[%clk
0:00:32.6]} 29... Kg7 {[%clk 0:01:32.2]} 30. Bd4+ {[%clk 0:00:30.1]} 30... Nxd4
{[%clk 0:01:28.1]} 31. cxd4 {[%clk 0:00:32]} 31... Re8 {[%clk 0:01:24.3]} 32.
Rxa7 {[%clk 0:00:25.5]} 32... Qe1+ {[%clk 0:01:21.5]} 33. Kh2 {[%clk 0:00:26]}
33... Re4 {[%clk 0:01:13.8]} 34. g3 {[%clk 0:00:14.3]} 34... Re2 {[%clk
0:01:11.1]} 35. Rxf7+ {[%clk 0:00:08.7]} 35... Kxf7 {[%clk 0:01:12.3]} 36. Qf5+
{[%clk 0:00:09.9]} 36... Kg7 {[%clk 0:01:11]} 37. Qd7+ {[%clk 0:00:08.9]} 37...
Re7 {[%clk 0:01:11.9]} 0-1

[Event "*** Titled Tuesday Blitz"]
[Site "Chess.com"]
[Date "2019.06.04"]
[Round "4"]
[White "Korchmar_Vasiliy"]
[Black "Ginger_GM"]
[Result "1-0"]
[WhiteElo "2781"]
[BlackElo "2542"]
[TimeControl "180+2"]
[EndTime "13:50:55 PDT"]
[Termination "Korchmar_Vasiliy won by resignation"]

1. d4 {[%clk 0:03:01.4]} 1... e6 {[%clk 0:02:57.8]} 2. c4 {[%clk 0:03:01.7]}
2... b6 {[%clk 0:02:57.5]} 3. e4 {[%clk 0:03:02.4]} 3... Bb7 {[%clk 0:02:57.9]}
4. Bd3 {[%clk 0:03:04]} 4... Bb4+ {[%clk 0:02:58.3]} 5. Kf1 {[%clk 0:03:04.2]}
5... Bf8 {[%clk 0:02:58.7]} 6. Nc3 {[%clk 0:03:02.1]} 6... g6 {[%clk 0:02:59.6]}
7. h4 {[%clk 0:03:01]} 7... h6 {[%clk 0:03:00.6]} 8. Nge2 {[%clk 0:02:54.7]}
8... Bg7 {[%clk 0:03:00.3]} 9. Be3 {[%clk 0:02:54.6]} 9... Ne7 {[%clk
0:02:47.1]} 10. Qd2 {[%clk 0:02:54.9]} 10... d5 {[%clk 0:02:38.3]} 11. cxd5
{[%clk 0:02:51.3]} 11... exd5 {[%clk 0:02:39.3]} 12. e5 {[%clk 0:02:53.2]} 12...
Bc8 {[%clk 0:02:37.1]} 13. Rc1 {[%clk 0:02:51.3]} 13... a6 {[%clk 0:02:30.6]}
14. Nf4 {[%clk 0:02:41.1]} 14... Be6 {[%clk 0:02:15.7]} 15. Nxe6 {[%clk
0:02:09.1]} 15... fxe6 {[%clk 0:02:16.4]} 16. Qc2 {[%clk 0:02:11]} 16... Nf5
{[%clk 0:02:03.5]} 17. Bxf5 {[%clk 0:02:10.9]} 17... gxf5 {[%clk 0:02:02.7]} 18.
Ne2 {[%clk 0:02:12.8]} 18... c6 {[%clk 0:01:54.2]} 19. Nf4 {[%clk 0:02:12.5]}
19... Qd7 {[%clk 0:01:45.8]} 20. h5 {[%clk 0:02:09]} 20... Rg8 {[%clk
0:00:58.9]} 21. Rh3 {[%clk 0:02:09.5]} 21... Bf8 {[%clk 0:00:59.8]} 22. Ng6
{[%clk 0:02:02.5]} 22... a5 {[%clk 0:00:48]} 23. a3 {[%clk 0:01:57.6]} 23... a4
{[%clk 0:00:46.1]} 24. Qd2 {[%clk 0:01:53.3]} 24... c5 {[%clk 0:00:40.8]} 25.
Bxh6 {[%clk 0:01:43.8]} 25... Bxh6 {[%clk 0:00:38.6]} 26. Qxh6 {[%clk
0:01:45.7]} 26... Nc6 {[%clk 0:00:38.9]} 27. dxc5 {[%clk 0:01:42.7]} 27... Nd4
{[%clk 0:00:31.6]} 28. c6 {[%clk 0:01:23.2]} 28... Nxc6 {[%clk 0:00:31.8]} 29.
Rxc6 {[%clk 0:01:03]} 29... Qxc6 {[%clk 0:00:31.9]} 30. Rc3 {[%clk 0:00:58.7]}
30... Qd7 {[%clk 0:00:26.3]} 31. Qc1 {[%clk 0:00:56.4]} 31... d4 {[%clk
0:00:21.6]} 32. Rc7 {[%clk 0:00:56.3]} 32... Qb5+ {[%clk 0:00:22.9]} 33. Kg1
{[%clk 0:00:57.2]} 33... Qd5 {[%clk 0:00:13.4]} 34. Re7+ {[%clk 0:00:56.9]} 1-0

[Event "*** Titled Tuesday Blitz"]
[Site "Chess.com"]
[Date "2019.06.04"]
[Round "4"]
[White "King_of_the_wing"]
[Black "dopolian"]
[Result "1-0"]
[WhiteElo "2191"]
[BlackElo "2252"]
[TimeControl "180+2"]
[EndTime "13:51:00 PDT"]
[Termination "King_of_the_wing won by resignation"]

1. e4 {[%clk 0:03:01.9]} 1... e5 {[%clk 0:03:00.2]} 2. Nf3 {[%clk 0:03:02.3]}
2... Nc6 {[%clk 0:03:01.1]} 3. Bc4 {[%clk 0:03:01.3]} 3... Bc5 {[%clk
0:03:02.1]} 4. c3 {[%clk 0:03:02]} 4... Nf6 {[%clk 0:03:02.6]} 5. d3 {[%clk
0:03:01.2]} 5... O-O {[%clk 0:03:03.3]} 6. Nbd2 {[%clk 0:02:59.8]} 6... d5
{[%clk 0:03:03.1]} 7. exd5 {[%clk 0:03:00.6]} 7... Nxd5 {[%clk 0:03:05]} 8. Ne4
{[%clk 0:03:00.7]} 8... Bb6 {[%clk 0:03:04.6]} 9. O-O {[%clk 0:02:57.2]} 9...
Bg4 {[%clk 0:02:57]} 10. h3 {[%clk 0:02:55]} 10... Bh5 {[%clk 0:02:57.9]} 11.
Ng3 {[%clk 0:02:55.9]} 11... Bg6 {[%clk 0:02:58.3]} 12. a4 {[%clk 0:02:47.6]}
12... a5 {[%clk 0:02:53.6]} 13. Qb3 {[%clk 0:02:45.3]} 13... Nf4 {[%clk
0:02:48.9]} 14. Bxf4 {[%clk 0:02:42.2]} 14... exf4 {[%clk 0:02:50.8]} 15. Ne4
{[%clk 0:02:39.4]} 15... Bxe4 {[%clk 0:02:44.7]} 16. dxe4 {[%clk 0:02:40.5]}
16... Qf6 {[%clk 0:02:42.9]} 17. Rfe1 {[%clk 0:02:35.9]} 17... Rae8 {[%clk
0:02:38.7]} 18. Bb5 {[%clk 0:02:34.2]} 18... Ne5 {[%clk 0:02:28.4]} 19. Bxe8
{[%clk 0:02:27.6]} 19... Nxf3+ {[%clk 0:02:29.2]} 20. gxf3 {[%clk 0:02:29.3]}
20... Qg5+ {[%clk 0:02:10.8]} 21. Kf1 {[%clk 0:02:28.5]} 21... Qh4 {[%clk
0:02:03.2]} 22. Bxf7+ {[%clk 0:02:28.2]} 22... Rxf7 {[%clk 0:02:03.6]} 23. Qc2
{[%clk 0:02:16.6]} 23... Qxh3+ {[%clk 0:02:04]} 24. Ke2 {[%clk 0:02:18.1]} 24...
Qh4 {[%clk 0:01:54.3]} 25. Rf1 {[%clk 0:02:14.4]} 25... Rf6 {[%clk 0:01:43.3]}
26. Qb3+ {[%clk 0:02:11.3]} 26... Kh8 {[%clk 0:01:40.1]} 27. Rad1 {[%clk
0:02:12.5]} 27... h6 {[%clk 0:01:13.1]} 28. Rd8+ {[%clk 0:02:11.2]} 28... Kh7
{[%clk 0:01:14.1]} 29. Qg8+ {[%clk 0:02:09.9]} 29... Kg6 {[%clk 0:01:15.5]} 30.
Rg1+ {[%clk 0:02:01.2]} 30... Kh5 {[%clk 0:01:15.6]} 31. Rd5+ {[%clk 0:01:56]}
31... g5 {[%clk 0:01:10]} 32. Qe8+ {[%clk 0:01:57.1]} 32... Rg6 {[%clk
0:01:11.7]} 33. Rg2 {[%clk 0:01:45.8]} 33... Qh3 {[%clk 0:01:08.1]} 34. Rg4
{[%clk 0:00:45.8]} 34... Qh2 {[%clk 0:01:00.4]} 35. Rdxg5+ {[%clk 0:00:39.5]}
35... hxg5 {[%clk 0:00:55.6]} 36. Rxg5+ {[%clk 0:00:26.5]} 36... Kh6 {[%clk
0:00:44.1]} 1-0

[Event "*** Titled Tuesday Blitz"]
[Site "Chess.com"]
[Date "2019.06.04"]
[Round "4"]
[White "enriquetejedor"]
[Black "Gordima"]
[Result "0-1"]
[WhiteElo "2554"]
[BlackElo "2775"]
[TimeControl "180+2"]
[EndTime "13:51:04 PDT"]
[Termination "Gordima won by resignation"]

1. e4 {[%clk 0:02:50.7]} 1... c5 {[%clk 0:03:00.7]} 2. Ne2 {[%clk 0:02:45.6]}
2... Nc6 {[%clk 0:03:00.9]} 3. d4 {[%clk 0:02:46.8]} 3... cxd4 {[%clk
0:03:01.5]} 4. Nxd4 {[%clk 0:02:48.7]} 4... Nf6 {[%clk 0:03:03.2]} 5. Nc3 {[%clk
0:02:49.1]} 5... e5 {[%clk 0:03:04.7]} 6. Ndb5 {[%clk 0:02:50.5]} 6... d6 {[%clk
0:03:06.3]} 7. Bg5 {[%clk 0:02:51.3]} 7... a6 {[%clk 0:03:07.5]} 8. Na3 {[%clk
0:02:52.8]} 8... b5 {[%clk 0:03:08.9]} 9. Nd5 {[%clk 0:02:53.9]} 9... Be7 {[%clk
0:03:10.4]} 10. Bxf6 {[%clk 0:02:54.7]} 10... Bxf6 {[%clk 0:03:11.9]} 11. c3
{[%clk 0:02:56.6]} 11... O-O {[%clk 0:03:09.1]} 12. Nc2 {[%clk 0:02:57.6]} 12...
Bg5 {[%clk 0:03:09.4]} 13. h4 {[%clk 0:02:57.8]} 13... Bh6 {[%clk 0:03:10.2]}
14. g3 {[%clk 0:02:59.4]} 14... Be6 {[%clk 0:03:05.8]} 15. Bg2 {[%clk
0:02:59.7]} 15... Rb8 {[%clk 0:03:03.5]} 16. O-O {[%clk 0:03:00.4]} 16... a5
{[%clk 0:03:04.6]} 17. Qd3 {[%clk 0:02:57.9]} 17... Kh8 {[%clk 0:03:02.7]} 18.
Rad1 {[%clk 0:02:57]} 18... f5 {[%clk 0:02:51.4]} 19. exf5 {[%clk 0:02:56.4]}
19... Bxf5 {[%clk 0:02:52.7]} 20. Qe2 {[%clk 0:02:56.6]} 20... e4 {[%clk
0:02:42]} 21. Nde3 {[%clk 0:02:46.3]} 21... Bg6 {[%clk 0:02:08.5]} 22. h5 {[%clk
0:02:44.7]} 22... Bf7 {[%clk 0:02:09.6]} 23. Bxe4 {[%clk 0:02:38.6]} 23... Ne5
{[%clk 0:02:10.8]} 24. Bd5 {[%clk 0:02:36.4]} 24... Bxd5 {[%clk 0:02:05.2]} 25.
Rxd5 {[%clk 0:02:36.8]} 25... b4 {[%clk 0:01:36.6]} 26. Rfd1 {[%clk 0:02:32.6]}
26... Qe8 {[%clk 0:01:34.4]} 27. f4 {[%clk 0:02:17.3]} 27... Nd7 {[%clk
0:01:28.7]} 28. c4 {[%clk 0:02:11.1]} 28... b3 {[%clk 0:01:27.4]} 29. axb3
{[%clk 0:02:06.5]} 29... Rxb3 {[%clk 0:01:29.2]} 30. Rxd6 {[%clk 0:02:04.1]}
30... Nf6 {[%clk 0:01:30.3]} 31. Qd2 {[%clk 0:01:56.2]} 31... Ne4 {[%clk
0:01:30.5]} 32. Rd8 {[%clk 0:01:49.8]} 32... Nxd2 {[%clk 0:01:31.3]} 33. Rxe8
{[%clk 0:01:50.8]} 33... Rxe8 {[%clk 0:01:31.4]} 34. Rxd2 {[%clk 0:01:51.9]}
34... Rxb2 {[%clk 0:01:32.6]} 35. Rd3 {[%clk 0:01:40.6]} 35... g6 {[%clk
0:01:28.1]} 36. hxg6 {[%clk 0:01:40.3]} 36... hxg6 {[%clk 0:01:29]} 37. Ra3
{[%clk 0:01:40.5]} 37... Ra8 {[%clk 0:01:13]} 38. Nd4 {[%clk 0:01:31]} 38... Bf8
{[%clk 0:01:12.2]} 39. Ra1 {[%clk 0:01:00]} 39... Bc5 {[%clk 0:01:12.2]} 40. Rd1
{[%clk 0:01:01.1]} 40... a4 {[%clk 0:01:11.9]} 41. Kf1 {[%clk 0:00:58.7]} 41...
a3 {[%clk 0:01:12.6]} 42. Nec2 {[%clk 0:00:29.1]} 42... a2 {[%clk 0:01:13.2]}
0-1

[Event "*** Titled Tuesday Blitz"]
[Site "Chess.com"]
[Date "2019.06.04"]
[Round "4"]
[White "chesstatour"]
[Black "Aragon"]
[Result "0-1"]
[WhiteElo "2033"]
[BlackElo "2084"]
[TimeControl "180+2"]
[EndTime "13:51:04 PDT"]
[Termination "Aragon won on time"]

1. c4 {[%clk 0:03:01.9]} 1... e6 {[%clk 0:02:58.7]} 2. d4 {[%clk 0:03:01.4]}
2... d5 {[%clk 0:02:59.5]} 3. Nf3 {[%clk 0:03:00.9]} 3... c6 {[%clk 0:03:00.5]}
4. g3 {[%clk 0:02:58.9]} 4... Nf6 {[%clk 0:03:00.7]} 5. Bg2 {[%clk 0:03:00]}
5... a6 {[%clk 0:02:59.8]} 6. b3 {[%clk 0:02:57.5]} 6... Nbd7 {[%clk 0:02:59.5]}
7. O-O {[%clk 0:02:57.7]} 7... Be7 {[%clk 0:03:00.6]} 8. Bb2 {[%clk 0:02:56.8]}
8... O-O {[%clk 0:03:01.3]} 9. Nc3 {[%clk 0:02:57]} 9... b5 {[%clk 0:03:02.2]}
10. Rc1 {[%clk 0:02:45.4]} 10... b4 {[%clk 0:03:02.7]} 11. Na4 {[%clk
0:02:43.1]} 11... a5 {[%clk 0:03:03.8]} 12. cxd5 {[%clk 0:02:36]} 12... cxd5
{[%clk 0:03:04.1]} 13. Ne5 {[%clk 0:02:30.4]} 13... Nxe5 {[%clk 0:03:02.7]} 14.
dxe5 {[%clk 0:02:30.3]} 14... Nd7 {[%clk 0:03:04.6]} 15. e4 {[%clk 0:02:25.5]}
15... Ba6 {[%clk 0:03:01.6]} 16. Re1 {[%clk 0:02:03]} 16... dxe4 {[%clk
0:03:02.1]} 17. Bxe4 {[%clk 0:02:02]} 17... Rc8 {[%clk 0:03:02.8]} 18. Bc6
{[%clk 0:01:24.7]} 18... Nb8 {[%clk 0:02:49.5]} 19. Be4 {[%clk 0:00:55.1]} 19...
Rxc1 {[%clk 0:02:37.4]} 20. Qxc1 {[%clk 0:00:49.6]} 20... Bb5 {[%clk 0:02:25.9]}
21. Rd1 {[%clk 0:00:44.1]} 21... Qc8 {[%clk 0:02:19.4]} 22. Qxc8 {[%clk
0:00:24.3]} 22... Rxc8 {[%clk 0:02:21.3]} 23. Nb6 {[%clk 0:00:25]} 23... Rd8
{[%clk 0:02:09.7]} 24. Rxd8+ {[%clk 0:00:20.1]} 24... Bxd8 {[%clk 0:02:09.9]}
25. Bd4 {[%clk 0:00:20.8]} 25... Nc6 {[%clk 0:02:07.2]} 26. Bxc6 {[%clk
0:00:15.5]} 26... Bxc6 {[%clk 0:02:08.1]} 27. Nc4 {[%clk 0:00:11.5]} 27... a4
{[%clk 0:02:07]} 28. Bc5 {[%clk 0:00:09.6]} 28... axb3 {[%clk 0:02:02.6]} 29.
axb3 {[%clk 0:00:10.1]} 29... Bd5 {[%clk 0:02:01.1]} 30. Bxb4 {[%clk 0:00:10]}
30... Bc7 {[%clk 0:02:02.1]} 31. f4 {[%clk 0:00:10.2]} 31... f6 {[%clk
0:02:01.5]} 32. exf6 {[%clk 0:00:10.7]} 32... gxf6 {[%clk 0:02:02.2]} 33. Kf2
{[%clk 0:00:10.9]} 33... Bb8 {[%clk 0:02:01.7]} 34. Bc3 {[%clk 0:00:09.4]} 34...
Ba7+ {[%clk 0:02:01.2]} 35. Ke2 {[%clk 0:00:08.9]} 35... Bg1 {[%clk 0:02:02.5]}
36. h3 {[%clk 0:00:05.9]} 36... Kf7 {[%clk 0:02:00.9]} 37. Nd2 {[%clk
0:00:05.9]} 37... h5 {[%clk 0:01:55]} 38. b4 {[%clk 0:00:05.7]} 38... Ke7 {[%clk
0:01:45.4]} 39. Nf3 {[%clk 0:00:05.9]} 39... Bc4+ {[%clk 0:01:43]} 40. Kd2
{[%clk 0:00:04.7]} 40... Bf2 {[%clk 0:01:41.1]} 41. g4 {[%clk 0:00:04.3]} 41...
Bd5 {[%clk 0:01:36]} 42. Nd4 {[%clk 0:00:03.2]} 42... h4 {[%clk 0:01:35.1]} 43.
Ne2 {[%clk 0:00:02.1]} 43... Bg2 {[%clk 0:01:35.4]} 0-1

[Event "*** Titled Tuesday Blitz"]
[Site "Chess.com"]
[Date "2019.06.04"]
[Round "4"]
[White "2nd_life"]
[Black "RojonR"]
[Result "0-1"]
[WhiteElo "2538"]
[BlackElo "2397"]
[TimeControl "180+2"]
[EndTime "13:51:05 PDT"]
[Termination "RojonR won by resignation"]

1. e4 {[%clk 0:03:01.9]} 1... e5 {[%clk 0:02:57.9]} 2. f4 {[%clk 0:03:02.5]}
2... d5 {[%clk 0:02:58]} 3. exd5 {[%clk 0:03:03.2]} 3... exf4 {[%clk 0:02:59]}
4. Nf3 {[%clk 0:03:03.8]} 4... Nf6 {[%clk 0:03:00.4]} 5. Nc3 {[%clk 0:03:04.3]}
5... Nxd5 {[%clk 0:03:00.9]} 6. Nxd5 {[%clk 0:03:04.6]} 6... Qxd5 {[%clk
0:03:02.8]} 7. d4 {[%clk 0:03:05.6]} 7... c5 {[%clk 0:02:44]} 8. Bxf4 {[%clk
0:02:46]} 8... Nc6 {[%clk 0:02:19.7]} 9. Qe2+ {[%clk 0:02:30.3]} 9... Be6 {[%clk
0:02:16.4]} 10. c4 {[%clk 0:02:28.7]} 10... Qf5 {[%clk 0:02:17.5]} 11. d5 {[%clk
0:02:07.4]} 11... Qxf4 {[%clk 0:02:09.5]} 12. dxe6 {[%clk 0:02:08.4]} 12... Nd4
{[%clk 0:02:02.7]} 13. Nxd4 {[%clk 0:01:59.8]} 13... cxd4 {[%clk 0:02:03]} 14.
exf7+ {[%clk 0:01:46.4]} 14... Kxf7 {[%clk 0:02:04.9]} 15. Qh5+ {[%clk
0:01:47.3]} 15... Kf6 {[%clk 0:01:55.7]} 16. Qf3 {[%clk 0:01:17]} 16... Bb4+
{[%clk 0:01:36.3]} 17. Kf2 {[%clk 0:01:17.1]} 17... Qxf3+ {[%clk 0:01:31.2]} 18.
gxf3 {[%clk 0:01:08.9]} 18... Bd2 {[%clk 0:01:25.8]} 19. Bd3 {[%clk 0:01:06.8]}
19... Be3+ {[%clk 0:01:25.9]} 20. Ke2 {[%clk 0:01:07.8]} 20... Rac8 {[%clk
0:01:24.1]} 21. b3 {[%clk 0:00:56.7]} 21... Rhe8 {[%clk 0:01:14.2]} 22. Be4
{[%clk 0:00:57.7]} 22... Rc7 {[%clk 0:01:12.4]} 23. h4 {[%clk 0:00:41.6]} 23...
g6 {[%clk 0:01:10.7]} 24. h5 {[%clk 0:00:40.4]} 24... g5 {[%clk 0:01:11.4]} 25.
Kd3 {[%clk 0:00:28.8]} 25... Bf4 {[%clk 0:01:10.7]} 26. h6 {[%clk 0:00:24.7]}
26... b5 {[%clk 0:01:04]} 27. Rhe1 {[%clk 0:00:08.8]} 27... bxc4+ {[%clk
0:01:01.3]} 28. bxc4 {[%clk 0:00:09.8]} 28... Rb8 {[%clk 0:00:58.7]} 29. Bd5
{[%clk 0:00:09.4]} 29... Rb2 {[%clk 0:00:49.9]} 30. Re6+ {[%clk 0:00:04.8]}
30... Kf5 {[%clk 0:00:50.6]} 31. Kxd4 {[%clk 0:00:04]} 31... Rd2+ {[%clk
0:00:50.6]} 32. Kc3 {[%clk 0:00:05.1]} 32... Rxd5 {[%clk 0:00:51.4]} 0-1